Cogmind - Beta 10.2 *** ADVENTURER MODE // 2022.03.17 @ 21:35:11 Player: MacC.Million Result: Destroyed by as-77854 with Assembled Blade Performance ------------- Evolutions (1) 500 Regions Visited (3) 600 Robots Destroyed (10) 50 Value Destroyed (253) 253 Prototype IDs (2) 40 Alien Tech Used (0) 0 Bonus (-14) -14 TOTAL SCORE: 1429 Bonus ------- Friendly Fire -14 Cogmind --------- Core Integrity 0/400 Matter 300/300 Energy 125/125 System Corruption 0% Temperature Cool (0) Movement Walking (120) Location -9/Mines Parts ------- > --- POWER (1) -------- Light Ion Engine > --- PROPULSION (2) --- Improved Aluminum Leg Improved Aluminum Leg > --- UTILITY (4) ------ Large Storage Unit Visual Processing Unit Improved Terrain Scanner Improved Targeting Computer > --- WEAPON (2) ------- (None) > --- INVENTORY (10) --- Aluminum Leg Heat Sink Heat Sink Visual Processing Unit Seismic Analyzer Improved Targeting Computer ECM Suite Beam Rifle Heavy Assault Rifle Katana Peak State ------------ > --- POWER ------------ Cooled Ion Engine > --- PROPULSION ------- Improved Aluminum Leg Improved Aluminum Leg > --- UTILITY ---------- Large Storage Unit Visual Processing Unit Terrain Scanner Improved Targeting Computer > --- WEAPON ----------- Beam Rifle Assault Rifle > --- INVENTORY -------- Improved Ion Engine Improved Flight Unit Heat Sink Heat Sink Visual Processing Unit Improved Targeting Computer ECM Suite Beam Rifle Katana [Rating: 17] Favorites ----------- Power Light Ion Engine Engine Light Ion Engine Propulsion Aluminum Leg Leg Aluminum Leg Flight Unit Improved Flight Unit Utility Large Storage Unit Device Terrain Scanner Storage Large Storage Unit Processor Improved Targeting Computer Weapon Assault Rifle Energy Gun Beam Rifle Ballistic Gun Assault Rifle Build | -11 -10 -9 -9 ------- Run | Scr Mat Mat Min Slots Evolved 2 | . . 2 . Power . | . . . . Propulsion . | . . . . Utility 2 | . . 2 . Weapon . | . . . . Parts Attached 26 | 6 6 8 6 Power 5 | 1 1 2 1 Engine 5 | 1 1 2 1 Core . | . . . . Reactor . | . . . . Propulsion 10 | 2 2 2 4 Treads . | . . . . Leg 8 | 2 2 2 2 Wheel . | . . . . Hover . | . . . . Flight 2 | . . . 2 Utility 7 | 1 2 3 1 Device 2 | . . 1 1 Storage 3 | 1 2 . . Processor 2 | . . 2 . Hackware . | . . . . Protection . | . . . . Artifact . | . . . . Weapon 4 | 2 1 1 . Energy Gun 2 | 1 . 1 . Energy Cannon . | . . . . Ballistic Gun 2 | 1 1 . . Ballistic Cannon . | . . . . Launcher . | . . . . Special Weapon . | . . . . Impact Weapon . | . . . . Slashing Weapon . | . . . . Piercing Weapon . | . . . . Special Melee Weapon . | . . . . Unidentified Prototypes 2 | . . 1 1 Parts Lost 7 | . . 1 6 Power 2 | . . 1 1 Propulsion 3 | . . . 3 Utility . | . . . . Weapon 2 | . . . 2 Highest Loss Streak 5 | . . 1 5 Average Slot Usage (%) 76 | . 83 95 57 Engine 7 | . 11 10 4 Leg 14 | . 22 22 4 Flight 1 | . . . 3 Device 8 | . . 11 11 Storage 14 | . 27 11 11 Processor 16 | . . 22 22 Energy Gun 5 | . 8 8 . Ballistic Gun 6 | . 11 11 . Naked Turns . | . . . . Heaviest Build 38 | 10 38 30 30 Greatest Support 26 | 20 20 26 26 Greatest Overweight (x) 12 | . 12 1 9 Average Overweight (x) 1 | . 1 . 3 Largest Inventory Capacity 16 | 6 16 16 10 Average Capacity 10 | 5 15 10 10 Most Carried 13 | 4 13 10 10 Average Carried 7 | . 5 9 8 Final Capacity 16 | 6 16 10 10 Final Carried 10 | . 9 9 10 Class Distribution -------------------- 100% | Mutant Dominant Class ---------------- Mutant | -10/Materials Mutant | -9/Materials Mutant | -9/Mines Resources | -11 -10 -9 -9 ----------- Run | Scr Mat Mat Min Matter Collected 532 | 218 50 214 50 Remotely . | . . . . Salvage Created 405 | . 50 355 . Parts 29 | . 3 26 . Haulers Intercepted . | . . . . Recyclers Shooed 1 | . . 1 . Parts Field Recycled . | . . . . Retrieved Matter . | . . . . Parts Self-Destructed . | . . . . Prevented . | . . . . Kills | -11 -10 -9 -9 ------- Run | Scr Mat Mat Min Combat Hostiles Destroyed 5 | . 1 4 . Guns 5 | . 1 4 . Classes Destroyed 6 | . 1 5 . Builder 2 | . . 2 . Recycler 1 | . . 1 . Watcher 2 | . . 2 . Grunt 2 | . 1 1 . Duelist 1 | . . 1 . Sentry 2 | . . 2 . Best Kill Streak 4 | . 1 4 . Combat Bots Only 2 | . 1 2 . Max Kills in Single Turn 2 | . 1 2 . Gunslinging . | . . . . Exploded . | . . . . Melee . | . . . . Uniques/NPCs Destroyed . | . . . . Combat | -11 -10 -9 -9 -------- Run | Scr Mat Mat Min Damage Taken 1070 | . 26 273 771 Core 416 | . 8 102 306 Absorbed by Shields . | . . . . Core Remaining (%) 98 | 100 96 . . Volleys Fired 35 | . 5 28 2 Largest 2 | . 1 2 2 Hottest 76 | . 20 76 76 Shots Fired 60 | . 5 51 4 Gun 60 | . 5 51 4 Cannon . | . . . . Launcher . | . . . . Special . | . . . . Kinetic 35 | . 5 28 2 Thermal 25 | . . 23 2 Explosive . | . . . . Electromagnetic . | . . . . Robot Hit Streak 19 | . 5 19 3 Robot Miss Streak 2 | . . 2 1 Penetration Max . | . . . . Secondary Targets . | . . . . Shots Hit Robots 48 | . 5 40 3 Core Hits 20 | . 2 16 2 Critical Hits . | . . . . Critical Kills . | . . . . Critical Parts Destroyed . | . . . . Melee Attacks . | . . . . Impact . | . . . . Slashing . | . . . . Piercing . | . . . . Sneak Attacks . | . . . . Combat Hostiles . | . . . . Follow-up Attacks . | . . . . Damage Inflicted 649 | . 59 538 52 Guns 649 | . 59 538 52 Cannons . | . . . . Explosions . | . . . . Melee . | . . . . Ramming . | . . . . Kinetic 329 | . 59 246 24 Thermal 320 | . . 292 28 Explosive . | . . . . Electromagnetic . | . . . . Impact . | . . . . Slashing . | . . . . Piercing . | . . . . Highest Corruption . | . . . . Average Corruption . | . . . . Corruption Purged . | . . . . Overload Shots . | . . . . Overflow Damage . | . . . . Projectiles . | . . . . Explosions . | . . . . Melee . | . . . . Knockbacks . | . . . . Impact . | . . . . Kinetic . | . . . . Secondary . | . . . . Self-Inflicted Damage . | . . . . Shots . | . . . . Rammed . | . . . . Targets Rammed . | . . . . Kicked . | . . . . Crushed . | . . . . Highest Temperature 49 | . . 49 . Average Temperature 19 | . . 19 . Received Heat Transfer 111 | . 21 90 . Siege Activations . | . . . . Robots Corrupted . | . . . . Combat Hostiles . | . . . . Parts Fried . | . . . . Impact Corruptions . | . . . . Robots Melted . | . . . . Combat Hostiles . | . . . . Parts Melted 1 | . . 1 . Heat Transferred 814 | . . 740 74 Parts Sabotaged . | . . . . Parts Stolen . | . . . . Parts Stripped . | . . . . Power Chain Reactions . | . . . . Missiles Intercepted . | . . . . Alert | -11 -10 -9 -9 ------- Run | Scr Mat Mat Min Peak Influence 215 | . 81 215 15 Initial 28 | . . 28 10 Average 38 | . 26 102 . Maximum Alert Level 1 | . . 1 . Low Security (%) 98 | 100 100 96 100 Level 1 1 | . . 3 . Level 2 . | . . . . Level 3 . | . . . . Level 4 . | . . . . Level 5 . | . . . . High Security . | . . . . Max Security . | . . . . Squads Dispatched . | . . . . Investigation . | . . . . Extermination . | . . . . Reinforcement . | . . . . Assault . | . . . . Garrison . | . . . . Intercept . | . . . . Construction Impeded . | . . . . Haulers Reinforced . | . . . . Stealth | -11 -10 -9 -9 --------- Run | Scr Mat Mat Min Distress Signals 4 | . 3 . 1 Communications Jammed . | . . . . Distress Signals . | . . . . Times Spotted 25 | . 5 7 13 Peak Tracking Total 8 | . 4 2 8 Tactical Retreats 6 | . 2 . 4 Traps | -11 -10 -9 -9 ------- Run | Scr Mat Mat Min Traps Triggered 3 | . 3 . . Indirectly . | . . . . Trap Hack Attempts . | . . . . Triggered . | . . . . Disarmed . | . . . . Reprogrammed . | . . . . Reused . | . . . . Traps Extracted . | . . . . Installed . | . . . . Triggered . | . . . . Machines | -11 -10 -9 -9 ---------- Run | Scr Mat Mat Min Machines Disabled . | . . . . Max in Single Turn . | . . . . Machines Sabotaged . | . . . . Garrisons Compromised . | . . . . Overloaded Fab Kills . | . . . . Fab Network Shutdowns . | . . . . Hacking | -11 -10 -9 -9 --------- Run | Scr Mat Mat Min Machines Accessed 3 | . 2 1 . Terminals 1 | . 1 . . Fabricators . | . . . . Repair Stations . | . . . . Recycling Units 2 | . 1 1 . Scanalyzers . | . . . . Garrison Access . | . . . . Total Hacks 7 | . 3 4 . Successful 6 | . 3 3 . Failed 1 | . . 1 . Catastrophic . | . . . . Database Lockouts . | . . . . Manual . | . . . . Terminals 1 | . 1 . . Fabricators . | . . . . Repair Stations . | . . . . Recycling Units 6 | . 2 4 . Scanalyzers . | . . . . Garrison Access . | . . . . Terminal Hacks 1 | . 1 . . Level Access Points 1 | . 1 . . Fabricator Hacks . | . . . . Repair Station Hacks . | . . . . Recycling Unit Hacks 5 | . 2 3 . Recycle Component 1 | . . 1 . Process 2 | . 1 1 . Report Inventory 2 | . 1 1 . Scanalyzer . | . . . . Garrison Access Hacks . | . . . . Unauthorized Hacks . | . . . . Terminals . | . . . . Fabricators . | . . . . Repair Stations . | . . . . Recycling Units . | . . . . Scanalyzers . | . . . . Garrison Access . | . . . . Data Cores Recovered . | . . . . Used . | . . . . Hacking Detections . | . . . . Full Trace Events . | . . . . Feedback Events . | . . . . Feedback Blocked . | . . . . Robot Schematics Acquired . | . . . . Robots Built . | . . . . Matter . | . . . . Time . | . . . . Total Robot Build Rating . | . . . . Part Schematics Acquired . | . . . . Parts Built . | . . . . Matter . | . . . . Time . | . . . . Total Part Build Rating . | . . . . Parts Repaired . | . . . . Time . | . . . . Parts Recycled 1 | . . 1 . Recycled Matter 204 | . 9 195 . Retrieved Matter . | . . . . Retrieved Components . | . . . . Parts Scanalyzed . | . . . . Part Schematics Acquired . | . . . . Parts Damaged . | . . . . Bothacking | -11 -10 -9 -9 ------------ Run | Scr Mat Mat Min Used RIF Installer . | . . . . Robots Hacked . | . . . . Non-combat . | . . . . Combat . | . . . . Robot Hacks Applied . | . . . . Relay Couplers Released . | . . . . Robots Rewired . | . . . . Allies Hacked . | . . . . Hacks Repelled . | . . . . Allies | -11 -10 -9 -9 -------- Run | Scr Mat Mat Min Total Allies . | . . . . Largest Group . | . . . . Highest-Rated Group . | . . . . Highest-Rated Ally . | . . . . Total Orders . | . . . . Ally Attacks . | . . . . Total Damage . | . . . . Kills . | . . . . Allies Corrupted . | . . . . Allies Melted . | . . . . Intel | -11 -10 -9 -9 ------- Run | Scr Mat Mat Min Robot Analysis Total . | . . . . Derelict Logs Recovered 2 | . . . 2 Drone Launches . | . . . . Drone Recoveries . | . . . . Exploration | -11 -10 -9 -9 ------------- Run | Scr Mat Mat Min Turns Passed 1407 | 92 300 446 569 Spaces Moved 696 | 78 156 229 233 Core 148 | 22 9 . 117 Treads . | . . . . Legs 522 | 56 147 229 90 Wheels . | . . . . Hover . | . . . . Flight 26 | . . . 26 Fastest Speed 50 | 50 120 120 120 Average Speed 177 | 100 172 148 234 Slowest Speed 650 | 120 650 150 500 Overloaded Moves . | . . . . Propulsion Burnouts . | . . . . Robots Hopped . | . . . . Cave-ins Triggered . | . . . . Exploration Rate (%) 27 | 6 36 17 51 Regions Visited 3 Branch Regions 1 Pre-discovered Areas . | . . . . Known Exits Taken 1 | . 1 . . Unknown Exits Taken 2 | 1 . 1 . Scrap Searched 1 | . . . 1 Spaces Dug . | . . . . Terrain Destroyed . | . . . . Melee . | . . . . Projectile . | . . . . AOE . | . . . . Terrain Rammed . | . . . . Walls Destroyed . | . . . . Machines Disabled . | . . . . Actions | -11 -10 -9 -9 --------- Run | Scr Mat Mat Min Total 817 | 93 183 289 252 Wait 2 | . . 2 . Move 693 | 77 155 228 233 Hop . | . . . . Pick Up 43 | 8 15 13 7 Fast Attach . | . . . . Attach 26 | 6 6 8 6 Detach 5 | . 1 2 2 Swap . | . . . . Drop 13 | 2 1 8 2 Fire 35 | . 5 28 2 Melee . | . . . . Ram . | . . . . Kick . | . . . . Crush . | . . . . Escape Stasis . | . . . . Rewire . | . . . . Trap . | . . . . Miscellaneous . | . . . . Route ------- -11/Scrapyard -10/Materials (discovered 3 exits: *Mat x3) -9/Materials -9/Mines (discovered 1 exit: Mat) History --------- Turn | Location | Event 9 | -11/Scrapyard | Discovered new exit (range 16) 93 | -11/Scrapyard | Entered Materials 140 | -10/Materials | Identified exit to Materials 316 | -10/Materials | Build established: Mutant 393 | -10/Materials | Entered another Materials area 393 | -9/Materials | Evolved 2 slots: Utility x2 493 | -9/Materials | Discovered new exit (range 11) 839 | -9/Materials | Entered Mines 842 | -9/Mines | Assembled infested the area 847 | -9/Mines | Assisted by a Guerilla fighting off Assembled 881 | -9/Mines | Core integrity fell below 50% 901 | -9/Mines | Met a Derelict bent on vengeance 923 | -9/Mines | Lost 5 parts (1p2n2w) 939 | -9/Mines | Core integrity fell below 20% 1076 | -9/Mines | Learned Materials trap positions 1389 | -9/Mines | Identified exit to Materials 1408 | -9/Mines | Destroyed by as-77854 with Assembled Blade Last Messages --------------- 00974_ Faulty Imp. Flight Unit destroyed. 01076_ Acquired derelict log, extracted data. Data stored: Materials trap records. 01178_ Acquired Imp. Terrain Scanner. 01219_ Searching scrap... 01219_ Found Lgt. Ion Engine. 01219_ Found VTOL Module. 01219_ Found 15 Matter. 01220_ Acquired 10 matter. 01225_ Acquired VTOL Module. 01230_ Acquired Lgt. Ion Engine. 01232_ Dropped Terrain Scanner. 01306_ Acquired Imp. Aluminum Leg. 01307_ Dropped VTOL Module. 01310_ Acquired Imp. Aluminum Leg. 01312_ Acquired 40 matter. 01315_ Acquired Aluminum Leg. 01366_ 0T-U6R(g): "I WILL HAVE VENGEANCE!" 01389_ Acquired derelict log, extracted data. 01394_ Acquired Seismic Analyzer. Map ----- +----------------------------------------------------+ | ?????????????????????????????????##! %=*/ """ #?# | | ??????????????????????????????????#%##### ##? | | ??????????????????????????????????# #???# """ #?? | | ????????????????????#???#?????????#=#??## """ #?? | | ???????????????????????????????#??# #?#?# """ #?# | | ??????????????????????????????????# #??## #?? | | ??????????????????????????????????# #???#######?# | | ???????????????????????????#??????# ######??????? | | ???????????????????? ?????????##??# #??????? | | ??????????????????????????#???#???###### #?#????? | | ????????????????????? ??????#??????????# ####???# | | ????????????????????????????#?#???????## ###?? | | ??????????????????????#???????????????# #??? | | ???????????????????????????#??##???#?## #??? | | ?????????????????????#???#????????#???# ##?#? | | ???????????????????????#####?#?###??#?## ##???? | | ??????????????????????? ##?## ####### #????? | | ????????????????????#?? #??# #????? | | ???????????????????#???""" #??# ######% #?#??? | | ???????????????????????""" ??## ##?## ! ##???? | | ????????????????????????"" ?## ! ### #????? | | ???????????????????????? ?# % #????# | | ????##?????????????????? ?# #####?? | | ???? #?????? ?????????#*#?## #### #????#? | | ???? ????# %%= ########%#??#########?# #????#? | | ???? ????# !% a@##???????????## ##??### | | ???? ????# ####### ############?## #??#?# | | ??## ##??? ???????????## *%*% #??# #????# | | ### ##? ?????????????############ #??# ##???#? | | # # ## ????????????#???????????## #??# #?????? | | % ?????#??????#?????????????# #??# ##????? | | ??????????????????????#???## ####%#?????? | | #???????????????????????????# % #?#???? | | # ##?????????????????#?#??????###### ###???# | | # #?????????????????????#?????????# #?#?? | | ## #????????????????????????#????#?### #???? | | # # #????????????????????#??????####### #???? | | ##????????????????????????????# ###?? | | # #????#?????????#???????#??????# ### ###?? | | ##???????#????????????????????????# #?? | | ## #????#??#??????????#????????#?#?#?### #?? | | #####??????????????#???????#???????????## #?? | | #?????#??????????????????? ????????#?## ### | | #???????????????????????????????#????# #? | | #???????????????#?????????#??????????# #? | | ## #????#????????#?#???????????????????## #? | | ?## #???????????#??????????????????#?#### #? | | ??# #????#????????#????????????# ##### #? | | ?## #????????????#????????#????# ##? | | ## ##???????????????????????##?###### ###?? | +----------------------------------------------------+ Best States ------------- Heat Dissipation 28 Energy Generation 14 Energy Capacity 280 Matter Stores 300 Matter Capacity 300 Sight Range 18 Terrain Scan Range 16 Terrain Scan Density 10 Resistance: KI 20 Resistance: TH 20 Resistance: EX 20 Resistance: EM 20 Resistance: I 20 Resistance: S 20 Resistance: P 20 Evasion (%) 50 Targeting Accuracy 6 Offensive Hacking 10 Item Schematics ----------------- None Robot Schematics ------------------ None Fabricated ------------ Nothing Alien Tech Used ----------------- None Achievements -------------- None Challenges ------------ None Game ------ Seed TrapCoolantChronowheel Manual? 0 Play Time 00:33:32 Cumulative 30.2 hours Start 2022.03.17 @ 20:51:02 End 2022.03.17 @ 21:35:11 Sessions 1 Manual Loads 0 Difficulty Adventurer Special Mode None Game No. 27 Rogue 2 Adventurer 25 Explorer 0 Win Type - Total 0 Types 0/0/0/0/0/0/0/0/0 Lore% 25 Gallery% 27 Achievement% 24 Wizard Run 0 Options --------- ASCII 0 Keyboard 1 Movement Vi Keybinds 0 Fullscreen 1 Font 20/SmallcapsGlow Map View 66x50 Tactical HUD 1 Map Filters NONE Filters NONE Steam 1 RUN: 152ca2b1-b0d8-40e2-bad4-18a67683319f